[Event "FIJ Cannes 2024"]
[Site "Cannes"]
[Date "2024.02.25"]
[Round "9.4"]
[White "Petkov, Momchil"]
[Black "Ilamparthi A R"]
[Result "0-1"]
[ECO "A80"]
[WhiteElo "2498"]
[BlackElo "2426"]
[Annotator "ChessBase"]
[PlyCount "62"]
[EventDate "2024.02.20"]
[EventType "swiss"]
[EventCountry "FRA"]
[SourceTitle "playchess.com"]
[Source "ChessBase"]
[SourceQuality "1"]
[TimeControl "40/5400+30:1800+30"]

1. d4 {[%emt 1:31:00]} f5 {[%emt 1:31:00]} 2. Bf4 {[%emt 0:00:30]} Nf6 {[%emt 0:00:30]} 3. e3 {[%emt 0:00:30]} d6 {[%emt 0:00:30]} 4. Nc3 {[%emt 0:00:30]} e6 {[%emt 0:00:30]} 5. h3 {[%emt 0:00:30]} g6 {[%emt 0:00:30]} 6. g4 {[%emt 0:00:30]} Bg7 {[%emt 0:00:30]} 7. gxf5 {[%emt 0:00:30]} exf5 {[%emt 0:00:30]} 8. Bc4 {[%emt 0:00:30]} d5 {[%emt 0:00:30]} 9. Bd3 {[%emt 0:00:30]} O-O {[%emt 0:00:30]} 10. Nf3 {[%emt 0:00:30]} c6 {[%emt 0:00:30]} 11. h4 {[%emt 0:00:30]} Nbd7 {[%emt 0:00:30]} 12. Ne2 {[%emt 0:00:30]} Ne4 {[%emt 0:00:30]} 13. h5 {[%emt 0:00:30]} Ndf6 {[%emt 0:00:30]} 14. hxg6 {[%emt 0:00:30]} hxg6 {[%emt 0:00:30]} 15. Ne5 {[%emt 0:00:30]} g5 {[%emt 0:00:30]} 16. Bh2 {[%emt 0:00:30]} Qe8 {[%emt 0:00:30]} 17. f3 {[%emt 0:00:30]} Qh5 {[%emt 0:00:30]} 18. O-O {[%emt 0:00:30]} Qh3 {[%emt 0:00:30]} 19. c3 {[%emt 0:00:30]} Be6 {[%emt 0:00:30]} 20. Ng6 {[%emt 0:00:30]} Rfe8 {[%emt 0:00:30]} 21. Qe1 {[%emt 0:00:30]} Ng4 {[%emt 0:00:30]} 22. fxg4 {[%emt 0:00:30]} Qxe3+ {[%emt 0:00:30]} 23. Kg2 {[%emt 0:00:30]} Qxd3 {[%emt 0:00:30]} 24. Rf3 {[%emt 0:00:30]} Qc2 {[%emt 0:00:30]} 25. gxf5 {[%emt 0:00:30]} Nd2 {[%emt 0:00:30]} 26. Re3 {[%emt 0:00:30]} Bxf5 {[%emt 0:00:30]} 27. Rc1 {[%emt 0:00:30]} Rxe3 {[%emt 0:00:30]} 28. Rxc2 {[%emt 0:00:30]} Be4+ {[%emt 0:00:30]} 29. Kf2 {[%emt 0:00:30]} Rf3+ {[%emt 0:00:30]} 30. Kg1 {[%emt 0:00:30]} Rf1+ {[%emt 0:00:30]} 31. Qxf1 {[%emt 0:00:30]} Nxf1 {[%emt 0:00:30]} 0-1

[Event "FIJ Cannes 2024"]
[Site "Cannes"]
[Date "2024.02.25"]
[Round "9.6"]
[White "Roberts, Tallulah"]
[Black "Penarrubia, Tom"]
[Result "1-0"]
[ECO "C77"]
[WhiteElo "1488"]
[BlackElo "1008"]
[Annotator "NA RC"]
[PlyCount "78"]
[EventDate "2024.02.20"]
[EventType "swiss"]
[EventCountry "FRA"]
[SourceTitle "playchess.com"]
[Source "ChessBase"]
[SourceQuality "1"]
[TimeControl "40/5400+30:1800+30"]

1. e4 {[%emt 0:00:03]} e5 {[%emt 0:01:40]} 2. Nf3 {[%emt 0:00:03]} Nc6 {[%emt 0:00:20]} 3. Bb5 {[%emt 0:00:06]} a6 {[%emt 0:00:10]} 4. Ba4 {[%emt 0:00:03]} Nf6 {[%emt 0:00:26]} 5. d3 {[%emt 0:00:05]} g6 {[%emt 0:00:39]} 6. c3 {[%emt 0:00:36]} Bg7 {[%emt 0:00:20]} 7. O-O {[%emt 0:00:46]} O-O {[%emt 0:00:19]} 8. Re1 {[%emt 0:00:30]} d6 {[%emt 0:00:49]} 9. Nbd2 {[%emt 0:01:27]} Bd7 {[%emt 0:11:34]} 10. Nf1 {[%emt 0:02:06]} Nh5 {[%emt 0:07:46]} 11. Bg5 {[%emt 0:05:56]} Qc8 {[%emt 0:08:00]} 12. Qd2 {[%emt 0:09:23]} Re8 {[%emt 0:09:35]} 13. Bh6 {[%emt 0:05:13]} Bg4 {[%emt 0:03:04]} 14. Nh4 {[%emt 0:05:31]} Bf6 {[%emt 0:05:13]} 15. g3 {[%emt 0:09:27]} Bxh4 {[%emt 0:03:08]} 16. gxh4 {[%emt 0:01:21]} Bf3 {[%emt 0:03:32]} 17. Bd1 {[%emt 0:05:35]} Qg4+ {[%emt 0:03:23]} 18. Ng3 {[%emt 0:00:12]} Nf4 {[%emt 0:04:31]} 19. Bxf3 {[%emt 0:07:19]} Qxf3 {[%emt 0:02:38]} 20. Bxf4 {[%emt 0:00:29]} exf4 {[%emt 0:00:41]} 21. Ne2 {[%emt 0:13:43]} Qg4+ {[%emt 0:02:48]} 22. Kh1 {[%emt 0:01:30]} f3 {[%emt 0:05:37]} 23. Rg1 {[%emt 0:03:10]} Qxh4 {[%emt 0:01:29]} 24. Qf4 {[%emt 0:01:15]} Qxf2 {[%emt 0:09:33]} 25. Ng3 {[%emt 0:00:32]} Kf8 {[%emt 0:05:54]} 26. Raf1 {[%emt 0:02:17]} Qxb2 {[%emt 0:01:42]} 27. Qh6+ {[%emt 0:00:52]} Ke7 {[%emt 0:00:26]} 28. Rxf3 {[%emt 0:01:26]} Rf8 {[%emt 0:01:40]} 29. Qh4+ {[%emt 0:06:41]} Ke8 {[%emt 0:02:31]} 30. Rgf1 {[%emt 0:04:31]} Qxc3 {[%emt 0:00:36]} 31. Ne2 {[%emt 0:01:21]} Qe5 {[%emt 0:01:51]} 32. Qf2 {[%emt 0:03:11]} Qe7 {[%emt 0:01:17]} 33. Nf4 {[%emt 0:00:44]} Qf6 {[%emt 0:02:15]} 34. Nd5 {[%emt 0:00:24]} Qd4 {[%emt 0:00:43]} 35. Nxc7+ {[%emt 0:02:47]} Kd7 {[%emt 0:01:00]} 36. Rxf7+ {[%emt 0:00:26]} Rxf7 {[%emt 0:00:31]} 37. Qxf7+ {[%emt 0:00:08]} Kc8 {[%emt 0:00:39]} 38. Nxa8 {[%emt 0:00:35]} Kb8 {[%emt 0:00:37]} 39. Rb1 {[%emt 0:03:14]} Na5 {[%emt 0:00:00]} 1-0